bitfinex/quotes_SOLUSD_20241117
["timestamp","ask_amount","ask_price","bid_price","bid_amount"]
[1731801845684,8.97457458,216.06,216.0,4.6296]
[1731801846181,8.97457458,216.06,215.94,30.29344025]
[1731801846182,8.97457458,216.04,215.94,23.776884]
[1731801846487,0.12549,216.03,215.95,13.60527458]
[1731801846690,0.12549,216.03,215.97,8.97457458]
[1731801847073,0.12549,216.03,215.95,4.6307]
[1731801847273,29.22555458,216.06,215.97,8.97457458]
[1731801847493,8.97457458,216.04,215.97,8.97457458]
[1731801847785,0.12549,216.03,215.97,8.97457458]
[1731801848574,4.75459,216.03,215.97,8.97457458]
[1731801849672,13.72916458,216.03,215.94,23.776884]
[1731801849867,0.12549,216.0,215.93,8.97457458]
[1731801850285,9.22555458,216.02,215.94,8.97457458]
[1731801850876,0.12549,216.0,215.94,8.97457458]
[1731801851295,9.10006458,216.0,215.91,28.408384]
[1731801851499,0.12549,215.99,215.91,4.6315]
[1731801851798,8.97457458,215.99,215.91,13.60607458]
[1731801851976,0.12549,215.98,215.91,13.60607458]
[1731801852386,0.12549,215.98,215.92,8.97457458]
[1731801852599,0.12549,215.97,215.88,11.31661254]
[1731801852776,0.12549,215.97,215.86,4.6326]
[1731801852777,0.12549,215.94,215.86,4.6326]
[1731801852976,8.97457458,215.95,215.88,8.97457458]
[1731801853184,4.6301,215.98,215.89,8.97457458]
[1731801853388,0.12549,215.97,215.91,8.97457458]
[1731801854394,13.60497458,215.97,215.9,8.97457458]
[1731801854810,15.124,215.99,215.91,8.97457458]
[1731801854811,28.72847458,215.99,215.91,8.97457458]
[1731801855096,19.7539,215.99,215.92,8.97457458]
[1731801855394,19.7539,215.99,215.93,8.97457458]
[1731801855690,19.7539,215.99,215.88,23.776884]
[1731801855900,4.6295,216.01,215.95,23.776884]
[1731801856392,8.97457458,216.02,215.95,23.776884]
[1731801856575,28.72747458,216.04,215.98,23.776884]
[1731801857196,8.97457458,216.03,215.97,23.776884]
[1731801857793,8.97457458,216.03,215.97,28.407084]
[1731801858600,15.124,216.04,215.97,37.38165858]
[1731801859477,13.60287458,216.07,215.99,8.97457458]
[1731801859682,13.60287458,216.07,216.0,28.406284]
[1731801859892,21.764,216.09,216.0,28.406284]
[1731801859893,26.3918,216.09,216.02,23.776884]
[1731801860196,35.36637458,216.09,216.02,23.776884]
[1731801861205,8.97457458,216.07,216.02,28.405984]
[1731801862618,21.764,216.09,216.02,28.405984]
[1731801862823,28.72627458,216.09,216.02,37.38055858]
[1731801863116,15.124,216.09,216.04,23.776884]
[1731801863998,4.6269,216.13,216.05,8.97457458]
[1731801864209,8.97457458,216.12,216.06,23.776884]
[1731801865222,13.60167458,216.12,216.06,28.405084]
[1731801865424,8.97457458,216.08,216.0,15.6316]
[1731801865602,8.97457458,216.04,215.98,4.63]
[1731801866001,20.25098,216.11,215.99,8.97457458]
[1731801866201,8.97457458,216.08,216.01,8.97457458]
[1731801866414,20.12549,216.11,216.01,8.97457458]
[1731801866698,8.97457458,216.08,216.01,8.97457458]
[1731801866903,8.97457458,216.07,216.0,8.97457458]
[1731801867108,8.97457458,216.08,216.02,4.6292]
[1731801867314,8.97457458,216.09,216.03,23.776884]
[1731801868039,8.97457458,216.1,216.03,23.776884]
[1731801868537,13.60207458,216.1,216.03,23.776884]
[1731801868714,8.97457458,216.11,216.03,32.75145858]
[1731801869036,8.97457458,216.13,216.06,23.776884]
[1731801869199,13.60147458,216.13,216.06,28.405184]
[1731801869405,8.97457458,216.12,216.06,28.405184]
[1731801869611,8.97457458,216.1,216.06,23.776884]
[1731801869825,8.97457458,216.1,216.05,23.776884]
[1731801870811,8.97457458,216.1,216.05,28.405384]
[1731801871429,8.97457458,216.08,216.05,23.776884]
[1731801871732,8.97457458,216.08,216.04,23.776884]
[1731801872631,8.97457458,216.06,215.99,8.97457458]
[1731801873309,8.97457458,216.06,215.95,20.0]
[1731801873512,8.97457458,216.04,215.94,15.6316]
[1731801873719,8.97457458,216.04,215.97,8.97457458]
[1731801874014,8.97457458,216.04,215.98,23.776884]
[1731801874514,13.60337458,216.04,215.96,23.776884]
[1731801874727,13.60337458,216.04,215.96,8.97457458]
[1731801874933,8.97457458,216.03,215.95,32.75145858]
[1731801875114,8.97457458,216.01,215.9,4.6317]
[1731801875310,4.6288,216.04,215.9,4.6317]
[1731801875311,8.97457458,216.0,215.92,8.97457458]
[1731801876329,8.97457458,215.97,215.9,4.6315]
[1731801876543,8.97457458,215.96,215.9,4.6315]
[1731801877332,8.97457458,215.97,215.9,4.6315]
[1731801877515,8.97457458,215.97,215.91,23.776884]
[1731801878226,8.97457458,215.95,215.85,4.6328]
[1731801878426,16.55228,216.03,215.85,4.6328]
[1731801878427,8.97457458,215.91,215.85,4.6328]
[1731801879633,6.4585,215.95,215.85,4.6328]
[1731801879634,8.97457458,215.92,215.85,4.6328]
[1731801879844,8.97457458,215.92,215.86,23.776884]
[1731801881013,8.97457458,215.92,215.86,4.6326]
[1731801881913,15.5345,215.99,215.89,8.97457458]
[1731801882227,15.5345,215.99,215.93,8.97457458]
[1731801882228,29.13907458,215.99,215.93,8.97457458]
[1731801882436,20.1645,215.99,215.94,8.97457458]
[1731801882733,20.1645,215.99,215.93,8.97457458]
[1731801883508,29.13907458,215.99,215.92,8.97457458]
[1731801883713,13.60497458,215.97,215.9,23.776884]
[1731801883934,13.60497458,215.97,215.9,32.75145858]
[1731801884535,13.60497458,215.97,215.9,37.38315858]
[1731801884729,4.6304,215.97,215.91,8.97457458]
[1731801885035,18.66094656,215.97,215.9,37.80743056]
[1731801885538,14.03054656,215.96,215.9,23.776884]
[1731801885736,14.03054656,215.96,215.9,28.408584]
[1731801885920,18.66094656,215.97,215.9,42.43913056]
[1731801886120,4.6304,215.97,215.91,14.03054656]
[1731801886324,18.66094656,215.97,215.9,42.43913056]
[1731801888138,34.19504656,215.99,215.92,37.80743056]
[1731801888314,20.1645,215.99,215.93,14.03054656]
[1731801888721,20.1645,215.99,215.9,28.408584]
[1731801888722,34.19504656,215.99,215.92,14.03054656]
[1731801889341,34.19504656,215.99,215.92,18.66164656]
[1731801890323,4.6295,216.01,215.95,14.03054656]
[1731801890724,14.03054656,216.02,215.96,23.776884]
[1731801891538,14.03054656,216.02,215.96,28.407284]
[1731801892130,18.65974656,216.02,215.96,4.6304]
[1731801897555,14.03054656,216.02,215.96,4.6304]
[1731801897848,30.28194656,216.04,215.97,37.80743056]
[1731801898062,20.8801,216.04,215.98,14.03054656]
[1731801898345,34.91064656,216.04,215.97,37.80743056]
[1731801899344,34.91064656,216.04,215.98,4.63]
[1731801899848,20.8801,216.04,215.98,18.66054656]
[1731801900244,34.91064656,216.04,215.98,4.63]
[1731801900576,16.2514,216.04,215.98,18.66054656]
[1731801900740,14.03054656,216.07,216.0,14.03054656]
[1731801900945,34.91004656,216.08,216.01,23.776884]
[1731801901350,14.03054656,216.06,216.01,23.776884]
[1731801901973,14.03054656,216.06,216.01,28.406184]
[1731801902461,14.03054656,216.06,215.98,14.03054656]
[1731801902462,14.03054656,216.06,215.99,23.776884]
[1731801902769,18.65894656,216.06,215.99,28.406584]
[1731801903069,14.03054656,216.02,215.95,43.776884]
[1731801903271,14.03054656,216.02,215.95,4.6307]
[1731801903639,4.6284,216.06,215.95,4.6307]
[1731801903640,14.03054656,216.01,215.95,4.6307]
[1731801903857,14.03054656,216.01,215.93,14.03054656]
[1731801904457,14.03054656,216.01,215.94,23.776884]
[1731801904769,14.03054656,216.01,215.92,8.97783976]
[1731801904770,8.97783976,216.0,215.92,8.97783976]
[1731801904945,8.97783976,215.99,215.91,8.97783976]
[1731801905276,8.97783976,215.97,215.9,13.60953976]
[1731801905562,8.97783976,215.99,215.92,8.97783976]
[1731801905767,15.9209,216.0,215.94,8.97783976]
[1731801906675,15.9209,216.0,215.95,23.776884]
[1731801907268,14.02514292,216.04,215.97,23.776884]
[1731801907450,15.9209,216.05,216.0,23.776884]
[1731801907655,29.94604292,216.05,216.0,23.776884]
[1731801908074,29.94604292,216.05,216.0,4.6295]
[1731801908380,14.02514292,216.02,215.95,23.776884]
[1731801908560,20.5494,216.05,215.92,11.09552576]
[1731801908561,14.02514292,215.99,215.92,14.02514292]
[1731801909280,14.02514292,215.99,215.91,14.02514292]
[1731801909457,14.02514292,215.99,215.92,14.02514292]
[1731801909787,32.1207,216.05,215.93,14.02514292]
[1731801909788,14.02514292,216.0,215.93,14.02514292]
[1731801910080,18.65484292,216.0,215.93,18.65614292]
[1731801910670,14.02514292,215.99,215.93,4.631]
[1731801911388,14.02514292,215.98,215.91,18.65664292]
[1731801911557,14.02514292,215.97,215.9,14.02514292]
[1731801911756,14.02514292,215.97,215.9,18.65684292]
[1731801912772,14.02514292,215.95,215.88,18.65704292]
[1731801913256,14.02514292,215.94,215.87,14.02514292]
[1731801913455,14.02514292,215.93,215.86,18.65754292]
[1731801914153,14.02514292,215.92,215.85,14.02514292]
[1731801914685,14.02514292,215.93,215.86,14.02514292]
[1731801915489,4.6313,215.92,215.86,14.02514292]
[1731801917166,14.02514292,215.94,215.88,14.02514292]
[1731801917370,14.02514292,215.95,215.88,14.02514292]
[1731801917765,14.02514292,215.94,215.88,14.02514292]
[1731801918394,4.631,215.94,215.88,14.02514292]
[1731801919567,14.02514292,215.93,215.87,14.02514292]
[1731801920076,18.65614292,215.94,215.88,14.02514292]
[1731801920273,4.631,215.94,215.89,14.02514292]
[1731801920478,24.6306,215.96,215.9,14.02514292]
[1731801920700,4.6306,215.96,215.9,14.02514292]
[1731801920995,18.65574292,215.96,215.89,14.02514292]
[1731801921999,18.65574292,215.96,215.9,4.6317]
[1731801922300,18.65574292,215.96,215.89,14.02514292]
[1731801922482,14.02514292,215.94,215.87,23.776884]
[1731801922794,14.02514292,215.92,215.86,14.02514292]
[1731801923169,0.12549,215.95,215.81,4.56426052]
[1731801923170,14.02514292,215.88,215.81,4.56426052]
[1731801923378,14.02514292,215.82,215.81,4.56426052]
[1731801923775,14.02514292,215.82,215.77,4.56426052]
[1731801923985,21.17498657,215.88,215.74,14.02514292]
[1731801923986,14.02514292,215.81,215.74,18.66014292]
[1731801924763,14.02514292,215.82,215.74,18.66014292]
[1731801924961,14.02514292,215.82,215.76,23.776884]
[1731801925286,14.02514292,215.82,215.77,4.6345]
[1731801927360,14.02514292,215.87,215.8,37.80202692]
[1731801927565,15.5601,215.89,215.83,14.02514292]
[1731801928367,14.02514292,215.92,215.85,14.02514292]
[1731801928689,26.3271,215.94,215.86,14.02514292]
[1731801928690,14.02514292,215.93,215.86,14.02514292]
[1731801929490,14.02514292,215.92,215.85,23.776884]
[1731801930096,15.5601,215.94,215.88,14.02514292]
[1731801930392,4.6303,215.97,215.9,14.02514292]
[1731801930393,14.02514292,215.97,215.9,14.02514292]
[1731801931094,14.02514292,215.98,215.9,14.02514292]
[1731801931389,14.02514292,215.98,215.83,4.6332]
[1731801931390,14.02514292,215.99,215.91,37.80202692]
[1731801931588,14.02514292,215.99,215.92,4.6313]
[1731801932163,14.02514292,216.02,215.95,14.02514292]
[1731801932369,10.7648,216.04,215.97,14.02514292]
[1731801932370,14.02514292,216.04,215.97,14.02514292]
[1731801932673,14.02514292,216.06,215.98,14.02514292]
[1731801932871,14.02514292,216.04,215.97,14.02514292]
[1731801933171,14.02514292,216.04,215.98,23.776884]
[1731801933371,14.02514292,216.04,215.96,14.02514292]
[1731801933691,14.02514292,216.04,215.97,28.406884]
[1731801934194,14.02514292,216.02,215.96,23.776884]
[1731801934565,4.6279,216.08,215.9,6.4745]
[1731801934566,14.02514292,215.97,215.9,14.02514292]
[1731801935896,14.02514292,215.98,215.9,14.02514292]
[1731801936602,14.02514292,215.98,215.91,23.776884]
[1731801937076,14.02514292,215.96,215.9,23.776884]
[1731801937277,14.02514292,215.98,215.9,37.80202692]
[1731801938400,14.02514292,215.96,215.89,4.6318]
[1731801938709,20.0924,215.99,215.91,14.02514292]
[1731801938710,14.02514292,215.98,215.91,14.02514292]
[1731801939001,14.02514292,215.98,215.92,4.6313]
[1731801939208,34.11754292,215.99,215.92,4.6313]
[1731801939414,29.48764292,215.99,215.92,4.6313]
[1731801939585,14.02514292,216.0,215.93,23.776884]
[1731801939773,15.4625,216.04,215.93,23.776884]
[1731801939774,14.02514292,216.01,215.93,37.80202692]
[1731801940779,14.02514292,216.01,215.94,4.6309]
[1731801942904,14.02514292,215.96,215.89,14.02514292]
[1731801943224,4.6294,216.01,215.9,23.776884]
[1731801943225,14.02514292,215.95,215.9,23.776884]
[1731801943382,14.02514292,215.95,215.89,23.776884]
[1731801943911,14.02514292,215.98,215.9,23.776884]
[1731801944202,14.02514292,216.0,215.94,23.776884]
[1731801945017,14.02514292,216.03,215.96,14.02514292]
[1731801945314,14.02514292,216.06,215.98,37.80202692]
[1731801945513,14.02514292,216.06,215.98,14.02514292]
[1731801945724,14.02514292,216.05,215.98,14.02514292]
[1731801946091,14.02514292,216.05,215.97,14.02514292]
[1731801946497,14.02514292,216.05,215.98,23.776884]
[1731801947113,14.02514292,216.05,215.99,4.6298]
[1731801947417,14.02514292,216.02,215.97,4.6301]
[1731801947801,14.02514292,216.04,215.98,23.776884]
[1731801948010,14.02514292,216.05,215.98,37.80202692]
[1731801948304,14.02514292,216.04,215.98,23.776884]
[1731801948809,14.02514292,216.07,216.0,14.02514292]
[1731801949313,14.02514292,216.05,215.99,4.6298]
[1731801949522,14.02514292,216.04,215.99,4.6298]
[1731801950296,14.02514292,216.03,215.95,34.02514292]
[1731801950600,14.02514292,216.03,215.97,4.6301]
[1731801951629,14.02514292,216.05,215.98,23.776884]
[1731801951819,14.02514292,216.05,215.98,37.80202692]
[1731801952012,14.02514292,216.04,215.97,4.6301]
[1731801952727,14.02514292,216.05,215.97,18.65524292]
[1731801953496,14.02514292,216.05,215.98,37.80202692]
[1731801953700,14.02514292,216.06,216.0,23.776884]
[1731801954818,14.02514292,216.06,216.01,4.6294]
[1731801957929,16.4726,216.09,216.02,23.776884]
[1731801957930,14.02514292,216.09,216.02,23.776884]
[1731801958904,14.02514292,216.13,216.06,14.02514292]
[1731801959106,35.08134292,216.14,216.07,14.02514292]
[1731801959307,14.02514292,216.13,216.06,14.02514292]
[1731801959501,14.02514292,216.13,216.07,23.776884]
[1731801959723,14.02514292,216.12,216.05,14.02514292]
[1731801960424,18.65194292,216.13,216.06,14.02514292]
[1731801960634,14.02514292,216.11,216.05,23.776884]
[1731801960808,14.02514292,216.09,216.04,4.6287]
[1731801961728,14.02514292,216.1,216.04,4.6287]
[1731801962028,14.02514292,216.08,216.02,28.406084]
[1731801962228,14.02514292,216.09,216.02,42.43122692]
[1731801962417,14.02514292,216.1,216.03,14.02514292]
[1731801962730,14.02514292,216.09,216.02,28.406084]
[1731801962937,14.02514292,216.09,216.02,42.43122692]
[1731801963308,14.02514292,216.04,215.97,29.24774292]
[1731801963826,14.02514292,216.05,215.98,14.02514292]
[1731801964532,14.02514292,216.05,215.98,18.65514292]
[1731801964718,14.02514292,216.05,215.99,23.776884]
[1731801964918,14.02514292,216.04,215.98,4.63]
[1731801965118,14.02514292,216.03,215.98,4.63]
[1731801965427,14.02514292,216.04,215.98,4.63]
[1731801966010,14.02514292,216.02,215.95,14.02514292]
[1731801966708,14.02514292,216.03,215.96,14.02514292]
[1731801967121,18.65404292,216.03,215.96,18.65534292]
[1731801967333,14.02514292,216.05,215.97,14.02514292]
[1731801967528,14.02514292,216.06,215.99,14.02514292]
[1731801967807,14.02514292,216.07,215.99,14.02514292]
[1731801969142,4.6268,216.13,216.02,14.02514292]
[1731801969310,14.02514292,216.09,216.02,14.02514292]
[1731801969739,14.02514292,216.08,216.01,14.02514292]
[1731801969912,14.02514292,216.08,216.02,23.776884]
[1731801970336,14.02514292,216.08,216.03,4.6289]
[1731801970735,14.02514292,216.09,216.03,4.6289]
[1731801970938,18.65274292,216.1,216.03,4.6289]
[1731801971113,14.02514292,216.09,216.03,4.6289]
[1731801971449,14.02514292,216.11,216.04,14.02514292]
[1731801971732,14.02514292,216.13,216.05,37.80202692]
[1731801972445,18.65204292,216.13,216.06,4.6283]
[1731801973029,14.02514292,216.13,216.06,4.6283]
[1731801973341,14.02514292,216.13,216.07,23.776884]
[1731801973832,11.5635,216.2,216.12,14.02514292]
[1731801973833,14.02514292,216.2,216.12,14.02514292]
[1731801974033,14.02514292,216.19,216.12,14.02514292]
[1731801974337,14.02514292,216.18,216.11,23.776884]
[1731801974541,14.02514292,216.17,216.11,23.776884]
[1731801974838,14.02514292,216.14,216.09,4.6277]
[1731801975251,14.02514292,216.15,216.09,4.6277]
[1731801975432,14.02514292,216.14,216.09,4.6277]
[1731801975841,14.02514292,216.15,216.09,4.6277]
[1731801977124,18.65134292,216.16,216.09,18.65284292]
[1731801977622,0.532909,216.21,216.16,23.776884]
[1731801977827,0.532909,216.21,216.16,37.80202692]
[1731801978034,0.532909,216.21,216.17,4.6259]
[1731801978329,0.532909,216.21,216.16,14.02514292]
[1731801978526,14.55805192,216.21,216.15,4.6264]
[1731801978746,0.532909,216.21,216.16,37.80202692]
[1731801978942,0.532909,216.21,216.19,23.776884]
[1731801979144,0.532909,216.21,216.19,37.80202692]
[1731801980424,0.532909,216.21,216.2,28.402184]
[1731801980656,0.532909,216.21,216.19,23.776884]
[1731801981042,0.532909,216.21,216.17,23.776884]
[1731801981349,14.55805192,216.21,216.14,6.4444]
[1731801981524,14.02514292,216.19,216.14,6.4444]
[1731801981729,0.532909,216.21,216.09,6.4444]
[1731801981730,14.02514292,216.15,216.09,6.4444]
[1731801982040,14.02514292,216.13,216.07,6.48473232]
[1731801982230,14.02514292,216.14,216.06,14.02514292]
[1731801982430,14.02514292,216.15,216.08,4.6278]
[1731801983254,0.532909,216.21,216.04,6.4444]
[1731801983455,14.02514292,216.13,216.06,4.6281]
[1731801983840,14.02514292,216.15,216.08,14.02514292]
[1731801984023,14.02514292,216.17,216.09,14.02514292]
[1731801984340,14.02514292,216.18,216.11,4.6272]
[1731801984543,14.02514292,216.18,216.11,18.65234292]
[1731801985452,14.02514292,216.16,216.09,14.02514292]
[1731801985677,14.02514292,216.16,216.1,28.404284]
[1731801986643,14.02514292,216.14,216.08,4.6277]
[1731801986827,14.02514292,216.13,216.08,4.6277]
[1731801987271,14.02514292,216.14,216.08,4.6277]
[1731801987560,14.02514292,216.18,216.1,14.02514292]
[1731801987737,14.02514292,216.17,216.09,37.80202692]
[1731801988627,14.02514292,216.19,216.11,37.80202692]
[1731801988851,0.532909,216.21,216.14,23.776884]
[1731801988852,19.18325192,216.21,216.14,23.776884]
[1731801989135,0.532909,216.21,216.14,37.80202692]
[1731801989558,0.532909,216.21,216.15,14.02514292]
[1731801990137,0.532909,216.21,216.16,14.02514292]
[1731801990355,0.532909,216.21,216.17,37.80202692]
[1731801990744,0.532909,216.21,216.18,4.6257]
[1731801993640,0.532909,216.21,216.14,20.14754292]
[1731801993858,14.02514292,216.19,216.16,23.776884]
[1731801994743,14.02514292,216.19,216.14,6.1224]
[1731801994941,14.02514292,216.19,216.13,21.2669]
[1731801995367,18.65074292,216.19,216.13,16.6402]
[1731801995863,18.65074292,216.19,216.11,14.02514292]
[1731801996467,18.65074292,216.19,216.12,23.776884]
[1731801996752,18.65074292,216.19,216.13,4.6268]
[1731801999358,14.02514292,216.19,216.13,4.6268]
[1731801999534,0.532909,216.21,216.17,23.776884]
[1731801999936,0.532909,216.21,216.16,23.776884]
[1731802000575,0.532909,216.21,216.15,4.6262]
[1731802000743,14.02514292,216.2,216.15,4.6262]
[1731802001234,14.55805192,216.21,216.15,4.6262]
[1731802002449,14.55805192,216.21,216.15,14.02514292]
[1731802002654,14.55805192,216.21,216.14,4.6266]
[1731802002865,14.02514292,216.19,216.11,14.02514292]
[1731802003042,14.02514292,216.17,216.12,23.776884]
[1731802003546,14.02514292,216.17,216.11,23.776884]
[1731802003745,14.02514292,216.18,216.11,23.776884]
[1731802005365,14.02514292,216.16,216.11,4.6272]
[1731802005847,4.6258,216.18,216.11,4.6272]
[1731802005848,14.02514292,216.17,216.11,4.6272]
[1731802006673,18.65114292,216.17,216.11,4.6272]
[1731802007274,18.65114292,216.17,216.09,28.404284]
[1731802007275,4.626,216.17,216.09,28.404284]
[1731802007450,14.02514292,216.12,216.04,6.5217]
[1731802007649,14.02514292,216.1,216.05,4.6285]
[1731802008648,14.02514292,216.1,216.06,23.776884]
[1731802009177,14.02514292,216.13,216.06,37.80202692]
[1731802009354,14.02514292,216.15,216.08,14.02514292]
[1731802009750,18.65144292,216.16,216.09,37.80202692]
[1731802009972,18.65144292,216.16,216.09,14.02514292]
[1731802010171,14.02514292,216.14,216.07,0.12549]
[1731802011175,14.02514292,216.13,216.06,37.80202692]
[1731802011386,14.02514292,216.12,216.05,14.02514292]
[1731802011563,14.02514292,216.12,216.06,23.776884]
[1731802012273,14.02514292,216.12,216.06,28.404984]
[1731802012581,14.02514292,216.13,216.06,42.43012692]
[1731802014697,14.02514292,216.12,216.06,28.404984]
[1731802014864,14.02514292,216.11,216.06,28.404984]
[1731802015985,14.02514292,216.1,216.04,4.6285]
[1731802016484,14.02514292,216.1,216.05,23.776884]
[1731802017579,18.65264292,216.1,216.02,14.02514292]
[1731802017893,14.02514292,216.06,215.99,14.02514292]
[1731802018371,14.02514292,216.08,215.99,14.02514292]
[1731802018971,4.6281,216.07,216.0,28.406284]
[1731802019172,20.3014,216.07,216.0,28.406284]
[1731802019383,20.3014,216.07,216.0,23.776884]
[1731802019696,20.3014,216.07,216.01,4.6294]
[1731802020687,14.02514292,216.08,216.02,23.776884]
[1731802021486,15.6733,216.12,216.02,23.776884]
[1731802021487,14.02514292,216.1,216.03,18.65404292]
[1731802021700,29.69844292,216.12,216.05,14.02514292]
[1731802021885,14.02514292,216.1,216.04,23.776884]
[1731802022073,14.02514292,216.09,216.02,23.776884]
[1731802022271,14.02514292,216.09,216.01,14.02514292]
[1731802022792,14.02514292,216.09,216.0,14.02514292]
[1731802023603,4.6279,216.08,216.0,18.65454292]
[1731802023969,4.6279,216.08,216.0,4.6294]
[1731802024169,14.02514292,216.07,216.0,4.6294]
[1731802024495,14.02514292,216.03,215.94,29.21334292]
[1731802024806,14.02514292,215.97,215.89,14.02514292]
[1731802024973,14.02514292,215.95,215.89,4.6319]
[1731802025293,14.02514292,215.94,215.89,4.6319]
[1731802025480,14.02514292,215.94,215.87,4.6324]
[1731802025668,14.02514292,215.94,215.87,18.65754292]
[1731802026889,14.02514292,215.92,215.84,14.02514292]
[1731802027395,14.02514292,215.94,215.86,14.02514292]
[1731802027897,14.02514292,215.92,215.85,14.02514292]
[1731802028075,14.02514292,215.92,215.83,4.6332]
[1731802028076,14.02514292,215.9,215.83,18.65834292]
[1731802028278,14.02514292,215.9,215.83,4.6332]
[1731802028499,14.02514292,215.88,215.81,20.48544292]
[1731802028793,14.02514292,215.85,215.76,22.5292]
[1731802028967,14.02514292,215.83,215.76,36.55434292]
[1731802029165,0.12549,215.92,215.77,14.11881754]
[1731802029166,14.02514292,215.84,215.77,14.11881754]
[1731802029588,14.02514292,215.84,215.78,4.6343]
[1731802029770,14.02514292,215.85,215.78,4.6343]
[1731802030170,20.0,215.93,215.81,14.02514292]
[1731802030399,20.0,215.93,215.79,0.21916462]
[1731802030400,14.02514292,215.91,215.85,0.12549]
[1731802030570,14.02514292,215.92,215.85,14.15063292]
[1731802030769,14.02514292,215.93,215.85,14.15063292]
[1731802030994,14.02514292,215.93,215.87,0.12549]
[1731802031180,29.39524292,215.94,215.87,14.15063292]
[1731802031572,29.39524292,215.94,215.88,4.6322]
[1731802032578,14.02514292,215.93,215.88,4.6322]
[1731802032995,29.39524292,215.94,215.88,4.6322]
[1731802033300,14.02514292,215.97,215.9,14.02514292]
[1731802033472,14.02514292,215.98,215.91,14.02514292]
[1731802033674,14.02514292,216.01,215.94,14.02514292]
[1731802034094,15.3701,216.05,215.96,14.02514292]
[1731802034095,14.02514292,216.03,215.96,14.02514292]
[1731802034408,14.02514292,216.04,215.96,14.02514292]
[1731802034577,14.02514292,216.03,215.96,14.02514292]
[1731802034779,14.02514292,216.03,215.97,4.6302]
[1731802034980,14.02514292,216.03,215.96,14.02514292]
[1731802035301,14.02514292,216.02,215.95,18.65564292]
[1731802035499,14.02514292,216.05,215.97,14.02514292]
[1731802035801,14.02514292,216.04,215.97,14.02514292]
[1731802035980,14.02514292,216.03,215.95,18.65564292]
[1731802036175,14.02514292,216.03,215.96,14.02514292]
[1731802036383,14.02514292,216.03,215.97,4.6302]
[1731802036591,4.6285,216.06,215.99,14.02514292]
[1731802036592,14.02514292,216.06,215.99,14.02514292]
[1731802036771,14.02514292,216.07,216.0,14.02514292]
[1731802036976,14.02514292,216.06,215.99,14.02514292]
[1731802037910,14.02514292,216.06,215.99,18.65474292]
[1731802038104,14.02514292,216.06,215.99,4.6296]
[1731802038279,14.02514292,216.03,215.97,4.6301]
[1731802039008,14.02514292,216.04,215.97,18.65524292]
[1731802039299,14.02514292,216.03,215.95,14.02514292]
[1731802039711,14.02514292,216.03,215.96,14.02514292]
[1731802040079,14.02514292,216.04,215.96,14.02514292]
[1731802040281,14.02514292,216.07,215.99,14.02514292]
[1731802040488,14.02514292,216.06,215.99,14.02514292]
[1731802040892,14.02514292,216.05,215.91,0.34465462]
[1731802041202,14.02514292,216.0,215.93,14.02514292]
[1731802041514,14.02514292,215.98,215.93,4.6311]
[1731802042101,14.02514292,215.96,215.88,14.02514292]
[1731802042306,14.02514292,215.95,215.88,14.02514292]
[1731802042505,14.02514292,215.94,215.87,6.4603]
[1731802042695,14.02514292,215.94,215.87,11.0925]
[1731802042883,15.9525,215.99,215.87,25.11764292]
[1731802042884,14.02514292,215.95,215.87,25.11764292]
[1731802044504,20.0,216.03,215.92,14.02514292]
[1731802044702,14.02514292,216.02,215.95,14.02514292]
[1731802045004,29.48204292,216.04,215.97,14.02514292]
[1731802045214,14.02514292,216.05,215.98,14.02514292]
[1731802045507,14.02514292,216.05,215.99,4.6298]
[1731802046400,14.02514292,216.07,215.99,18.65494292]
[1731802046804,22.42906162,216.07,215.99,27.05886162]
[1731802047290,22.42906162,216.06,215.99,27.05886162]
[1731802047692,22.42906162,216.06,215.98,22.42906162]
[1731802048004,27.05706162,216.08,216.0,22.42906162]
[1731802048311,22.42906162,216.06,215.98,22.42906162]
[1731802048822,22.42906162,216.06,215.99,23.902374]
[1731802049002,22.42906162,216.06,215.99,28.532174]
[1731802049400,22.42906162,216.04,215.97,23.902374]
[1731802049615,37.88596162,216.09,216.02,22.52273624]
[1731802049807,22.42906162,216.12,216.05,22.55455162]
[1731802050005,22.42906162,216.12,216.06,0.12549]
[1731802050731,37.88596162,216.14,216.06,46.33143562]
[1731802051116,37.88596162,216.14,216.07,27.05716162]
[1731802051327,22.42906162,216.15,216.08,23.902374]
[1731802051623,22.42906162,216.16,216.08,46.33143562]
[1731802052016,22.52480502,216.18,216.1,22.42906162]
[1731802052225,0.0957434,216.18,216.12,22.42906162]
[1731802052408,0.0957434,216.18,216.13,0.12549]
[1731802052608,0.0957434,216.18,216.13,22.55455162]
[1731802052809,0.0957434,216.18,216.13,0.12549]